lending/lending_fUSD_20250121
["ID","MTS","AMOUNT","RATE_DAILY","PERIOD"]
[349834469,1737455462199,-1814.27,0.0002158,2]
[349834470,1737455462209,-2064.99,0.0002158,2]
[349834471,1737455462219,-500.0,0.0002158,2]
[349834472,1737455462228,-551.16,0.0002158,2]
[349834473,1737455462238,-905.56,0.0002158,2]
[349834474,1737455462249,-2404.18,0.0002158,2]
[349834475,1737455462259,-841.45,0.0002158,2]
[349834476,1737455462269,-844.09,0.0002158,2]
[349834477,1737455462279,-711.51,0.0002158,2]
[349834478,1737455462289,-934.55,0.0002158,2]
[349834479,1737455462298,-537.42831683,0.00021581,2]
[349834480,1737455462308,-500.0,0.00021581,2]
[349834481,1737455462318,-500.0,0.00021581,2]
[349834482,1737455462328,-500.0,0.00021581,2]
[349834483,1737455462337,-500.0,0.00021581,2]
[349834484,1737455462347,-500.0,0.00021581,2]
[349834485,1737455462357,-1407.85,0.00021581,2]
[349834486,1737455462367,-500.0,0.00021581,2]
[349834487,1737455462378,-622.64,0.00021581,2]
[349834488,1737455462387,-667.61,0.00021581,2]
[349834489,1737455462397,-500.0,0.00021581,2]
[349834490,1737455462406,-1000.0,0.00021581,2]
[349834491,1737455462418,-766.15,0.00021581,2]
[349834492,1737455462428,-500.0,0.00021581,2]
[349834493,1737455462443,-1281.06,0.00021581,2]
[349834494,1737455462452,-500.0,0.00021582,2]
[349834495,1737455462462,-500.0,0.00021582,2]
[349834496,1737455462473,-500.0,0.00021582,2]
[349834497,1737455462483,-258.46380822,0.00021582,2]
[349834498,1737455462493,-500.0,0.00021582,2]
[349834499,1737455462502,-500.0,0.00021582,2]
[349834500,1737455462514,-500.0,0.00021582,2]
[349834501,1737455462523,-500.0,0.00021582,2]
[349834502,1737455462533,-500.0,0.00021582,2]
[349834503,1737455462544,-500.0,0.00021582,2]
[349834504,1737455462553,-500.0,0.00021582,2]
[349834505,1737455462563,-500.0,0.00021582,2]
[349834506,1737455462572,-500.0,0.00021582,2]
[349834507,1737455462582,-500.0,0.00021582,2]
[349834508,1737455462591,-619.95413519,0.00021582,2]
[349834509,1737455462601,-500.0,0.00021582,2]
[349834510,1737455462611,-500.0,0.00021582,2]
[349834511,1737455462620,-500.0,0.00021582,2]
[349834512,1737455462630,-500.0,0.00021582,2]
[349834513,1737455462639,-500.0,0.00021582,2]
[349834514,1737455462649,-723.84,0.00021582,2]
[349834515,1737455462660,-1160.98,0.00021582,2]
[349834516,1737455462669,-724.95,0.00021582,2]
[349834517,1737455462679,-500.0,0.00021582,2]
[349834518,1737455462689,-1973.65,0.00021582,2]
[349834519,1737455462698,-763.12,0.00021582,2]
[349834520,1737455462708,-614.89,0.00021582,2]
[349834521,1737455462718,-500.0,0.00021582,2]
[349834522,1737455462727,-1105.07,0.00021582,2]
[349834523,1737455462737,-500.0,0.00021582,2]
[349834524,1737455462747,-807.04,0.00021582,2]
[349834525,1737455462757,-219.1471027,0.00021582,2]
[349834526,1737455462766,-500.0,0.00021582,2]
[349834527,1737455462776,-500.0,0.00021582,2]
[349834528,1737455462786,-997.87,0.00021582,2]
[349834529,1737455462796,-500.0,0.00021582,2]
[349834530,1737455462806,-500.0,0.00021582,2]
[349834531,1737455462816,-500.0,0.00021582,2]
[349834532,1737455462826,-634.09,0.00021582,2]
[349834533,1737455462837,-500.0,0.00021582,2]
[349834534,1737455462847,-500.0,0.00021582,2]
[349834535,1737455462856,-500.0,0.00021582,2]
[349834536,1737455462866,-500.0,0.00021582,2]
[349834537,1737455462876,-522.9,0.00021582,2]
[349834538,1737455462886,-500.0,0.00021582,2]
[349834539,1737455462896,-500.0,0.00021582,2]
[349834540,1737455462905,-500.0,0.00021582,2]
[349834541,1737455462917,-500.0,0.00021582,2]
[349834542,1737455462926,-500.0,0.00021582,2]
[349834543,1737455462936,-632.31,0.00021582,2]
[349834544,1737455462946,-537.56,0.00021582,2]
[349834545,1737455462956,-924.73,0.00021582,2]
[349834546,1737455462965,-638.62,0.00021582,2]
[349834547,1737455462975,-1669.61,0.00021582,2]
[349834548,1737455462985,-500.0,0.00021582,2]
[349834549,1737455462995,-2780.73,0.00021582,2]
[349834550,1737455463005,-500.0,0.00021583,2]
[349834551,1737455463015,-200.0,0.000216,7]
[349834552,1737455463025,-1000.0,0.000216,2]
[349834553,1737455463036,-4367.6125662,0.000216,2]
[349834554,1737455463046,-396.09643435,0.00021614,2]
[349834555,1737455463056,-150.0,0.00021626,2]
[349834556,1737455463067,-896.64,0.00021643,2]
[349834557,1737455463077,-802.54,0.00021643,2]
[349834558,1737455463088,-599.33,0.00021643,2]
[349834559,1737455463098,-1130.76,0.00021643,2]
[349834560,1737455463108,-1764.8,0.00021643,2]
[349834561,1737455463283,-1170.87,0.00021643,2]
[349834562,1737455463294,-1935.46,0.00021643,2]
[349834563,1737455463303,-500.0,0.00021643,2]
[349834564,1737455463313,-1397.15,0.00021643,2]
[349834565,1737455463323,-888.75,0.00021643,2]
[349834566,1737455463332,-997.88,0.00021643,2]
[349834567,1737455463343,-709.63,0.00021643,2]
[349834568,1737455463352,-902.94,0.00021643,2]
[349834569,1737455463362,-2544.76,0.00021643,2]
[349834570,1737455463372,-850.52,0.00021643,2]
[349834571,1737455463382,-2292.3,0.00021643,2]
[349834572,1737455463392,-500.0,0.00021643,2]
[349834573,1737455463402,-543.61,0.00021643,2]
[349834574,1737455463413,-500.0,0.00021643,2]
[349834575,1737455463423,-1534.04,0.00021643,2]
[349834576,1737455463439,-1237.06,0.00021643,2]
[349834577,1737455463449,-457.43396546,0.00021666,2]
[349834578,1737455463459,-791.2183969,0.00021666,2]
[349834579,1737455463468,-1743.89384904,0.00021668,2]
[349834580,1737455463479,-1743.89384901,0.00021668,2]
[349834581,1737455463488,-983.79,0.00021699,2]
[349834582,1737455463498,-200.0,0.000217,7]
[349834583,1737455463509,-1000.0,0.000217,2]
[349834584,1737455463520,-150.0,0.00021713,2]
[349834585,1737455463530,-540.72,0.00021725,30]
[349834586,1737455463539,-500.0,0.00021736,2]
[349834587,1737455463549,-44198.24303111,0.00021748,2]
[349834588,1737455463559,-220.0,0.00021756,2]
[349834589,1737455463570,-2578.87116533,0.00021758,2]
[349834590,1737455463589,-290.18353317,0.00021763,2]
[349834591,1737455463601,-1000.0,0.00021769,2]
[349834592,1737455463611,-833.0,0.0002177,2]
[349834593,1737455463620,-10429.88229829,0.0002177,15]
[349834594,1737455463629,-816.469852,0.0002177,2]
[349834595,1737455463639,-816.469852,0.0002177,2]
[349834596,1737455463648,-161.031075,0.0002177,2]
[349834597,1737455463658,-288.822405,0.0002177,2]
[349834598,1737455463670,-288.822405,0.0002177,2]
[349834599,1737455463679,-151.0,0.0002177,2]
[349834600,1737455463689,-290.18353317,0.0002177,2]
[349834601,1737455463698,-44198.24303111,0.00021774,2]
[349834602,1737455463708,-3892.0869594,0.00021778,2]
[349834603,1737455463718,-82199.36147398,0.00021786,2]
[349834604,1737455463727,-2000.0,0.00021786,2]
[349834605,1737455463736,-200.0,0.00021786,2]
[349834606,1737455463746,-3000.0,0.00021786,2]
[349834607,1737455463756,-36332.94395692,0.00021786,2]
[349834608,1737455463766,-744.06494063,0.00021789,2]
[349834609,1737455463776,-921.4559759,0.00021789,2]
[349834610,1737455463786,-36332.94395692,0.00021789,2]
[349834611,1737455463796,-290.18353317,0.0002179,2]
[349834612,1737455463805,-387.90346576,0.0002179,2]
[349834613,1737455463815,-231.93358399,0.0002179,2]
[349834614,1737455463825,-200.0,0.00021792,2]
[349834615,1737455463835,-127921.66884297,0.00021795,2]
[349834616,1737455463856,-393.30728336,0.00021796,2]
[349834617,1737455463873,-8940.36013752,0.00021796,2]
[349834618,1737455463883,-6997.34460471,0.00021797,2]
[349834619,1737455463892,-20827.25077048,0.00021797,2]
[349834620,1737455463901,-16755.1511933,0.00021799,2]
[349834621,1737455463911,-11152.019923,0.00021799,2]
[349834622,1737455463922,-6184.34009232,0.00021799,2]
[349834623,1737455463931,-610.0,0.000218,7]
[349834624,1737455463940,-1000.0,0.000218,2]
[349834625,1737455463950,-20827.25077048,0.00021801,2]
[349834626,1737455463960,-2957.40204615,0.00021802,2]
[349834627,1737455463969,-1486.22180387,0.00021802,2]
[349834628,1737455463979,-2578.87116533,0.00021802,2]
[349834629,1737455463988,-1623.72236694,0.00021803,2]
[349834630,1737455463999,-3892.0869594,0.00021803,2]
[349834631,1737455464020,-3629.62266253,0.00021804,2]
[349834632,1737455464032,-7577.37104572,0.00021805,2]
[349834633,1737455464043,-6184.34009232,0.00021806,2]
[349834634,1737455464054,-1623.72236694,0.00021806,2]
[349834635,1737455464065,-316.53556136,0.00021807,2]
[349834636,1737455464076,-3629.62266253,0.00021807,2]
[349834637,1737455464087,-2333.33333333,0.00021808,2]
[349834638,1737455464098,-1082.48157796,0.0002181,2]
[349834639,1737455464108,-127921.66884297,0.00021811,2]
[349834640,1737455464119,-915.28365495,0.00021811,2]
[349834641,1737455464130,-44198.24303111,0.00021811,2]
[349834642,1737455464140,-2957.40204615,0.00021813,2]
[349834643,1737455464150,-7800.2045855,0.00021813,2]
[349834644,1737455464160,-3629.62266253,0.00021814,2]
[349834645,1737455464177,-500.0,0.00021815,2]
[349834646,1737455464187,-500.0,0.00021815,2]
[349834647,1737455464198,-500.0,0.00021815,2]
[349834648,1737455464208,-500.0,0.00021815,2]
[349834649,1737455464220,-500.0,0.00021815,2]
[349834650,1737455464232,-849.01,0.00021815,2]
[349834651,1737455464242,-500.0,0.00021815,2]
[349834652,1737455464253,-500.0,0.00021815,2]
[349834653,1737455464266,-500.0,0.00021815,2]
[349834654,1737455464277,-500.0,0.00021815,2]
[349834655,1737455464288,-500.0,0.00021815,2]
[349834656,1737455464299,-500.0,0.00021815,2]
[349834657,1737455464310,-500.0,0.00021815,2]
[349834658,1737455464320,-1799.36,0.00021815,2]
[349834659,1737455464331,-2685.0,0.00021815,2]
[349834660,1737455464341,-300.0,0.00021815,2]
[349834661,1737455464351,-528.56,0.00021815,2]
[349834662,1737455464361,-500.0,0.00021815,2]
[349834663,1737455464371,-500.0,0.00021815,2]
[349834664,1737455464382,-1519.25,0.00021815,2]
[349834665,1737455464393,-500.0,0.00021815,2]
[349834666,1737455464403,-500.0,0.00021815,2]
[349834667,1737455464417,-500.0,0.00021815,2]
[349834668,1737455464427,-627.7174251,0.00021815,2]
[349834669,1737455464438,-502.90648469,0.00021815,2]
[349834670,1737455464449,-500.0,0.00021815,2]
[349834671,1737455464459,-500.0,0.00021815,2]
[349834672,1737455464469,-500.0,0.00021815,2]
[349834673,1737455464479,-1429.36,0.00021815,2]
[349834674,1737455464490,-500.0,0.00021815,2]
[349834675,1737455464500,-500.0,0.00021815,2]
[349834676,1737455464509,-500.0,0.00021815,2]
[349834677,1737455464518,-500.0,0.00021815,2]
[349834678,1737455464528,-500.0,0.00021815,2]
[349834679,1737455464537,-1315.93,0.00021815,2]
[349834680,1737455464546,-500.0,0.00021815,2]
[349834681,1737455464556,-572.22,0.00021815,2]
[349834682,1737455464565,-2957.40204615,0.00021815,2]
[349834683,1737455464575,-316.53556136,0.00021816,2]
[349834684,1737455464584,-393.30728336,0.00021817,2]
[349834685,1737455464594,-9007.2606004,0.0002182,2]
[349834686,1737455464603,-200.0,0.0002182,2]
[349834687,1737455464613,-3660.51208475,0.00021821,2]
[349834688,1737455464623,-393.30728336,0.00021822,2]
[349834689,1737455464632,-32966.69232453,0.00021823,2]
[349834690,1737455464641,-500.0,0.00021823,2]
[349834691,1737455464650,-6184.34009232,0.00021823,2]
[349834692,1737455464659,-915.28365496,0.00021824,2]
[349834693,1737455464673,-200.0,0.00021826,2]
[349834694,1737455464682,-22779.24709211,0.00021827,2]
[349834695,1737455464692,-47188.13612214,0.00021829,2]
[349834696,1737455464701,-240.31966049,0.00021829,2]
[349834697,1737455464712,-1106.3971267,0.0002183,2]
[349834698,1737455464721,-387.90346576,0.0002183,2]
[349834699,1737455464731,-150.0,0.0002183,2]
[349834700,1737455464740,-2578.87116533,0.00021831,2]
[349834701,1737455464750,-7800.2045855,0.00021831,2]
[349834702,1737455464761,-7800.2045855,0.00021832,2]
[349834703,1737455464770,-4355.21673153,0.00021832,2]
[349834704,1737455464780,-3820.81913477,0.00021832,2]
[349834705,1737455464790,-200.0,0.00021833,2]
[349834706,1737455464799,-1428.22876759,0.00021833,2]
[349834707,1737455464810,-1106.3971267,0.00021833,2]
[349834708,1737455464820,-442.94854789,0.00021833,2]
[349834709,1737455464830,-2676.48376585,0.00021834,2]
[349834710,1737455464841,-2324.22729221,0.00021834,2]
[349834711,1737455464851,-47188.13612214,0.00021835,2]
[349834712,1737455464861,-1082.48157796,0.00021835,2]
[349834713,1737455464871,-19789.0,0.00021836,2]
[349834714,1737455464881,-437.71,0.00021836,2]
[349834715,1737455464891,-150.0,0.00021836,2]
[349834716,1737455464902,-150.0,0.00021836,2]
[349834717,1737455464917,-152.48,0.00021836,2]
[349834718,1737455464928,-150.0,0.00021836,2]
[349834719,1737455464939,-150.0,0.00021836,2]
[349834720,1737455464949,-150.0,0.00021836,2]
[349834721,1737455464959,-150.0,0.00021836,2]
[349834722,1737455464969,-154.43,0.00021836,2]
[349834723,1737455464979,-98580.48007377,0.00021836,2]
[349834724,1737455464989,-1428.22876759,0.00021836,2]
[349834725,1737455464999,-387.90346576,0.00021837,2]
[349834726,1737455465008,-1428.22876759,0.00021838,2]
[349834727,1737455465018,-316.53556136,0.00021838,2]
[349834728,1737455465028,-16755.1511933,0.00021838,2]
[349834729,1737455465038,-171638.87532602,0.00021838,2]
[349834730,1737455465263,-17986.92617298,0.00021838,2]
[349834731,1737455465275,-37562.16931208,0.00021838,2]
[349834732,1737455465285,-2324.22729221,0.00021839,2]
[349834733,1737455465294,-2699.99662852,0.00021839,2]
[349834734,1737455465304,-211.60412933,0.00021839,2]
[349834735,1737455465313,-6184.34009232,0.00021843,2]
[349834736,1737455465323,-3892.0869594,0.00021845,2]
[349834737,1737455465333,-200.0,0.00021845,2]
[349834738,1737455465342,-9363.60662886,0.00021847,2]
[349834739,1737455465352,-2324.22729221,0.00021847,2]
[349834740,1737455465362,-9007.2606004,0.00021847,2]
[349834741,1737455465372,-915.28365495,0.00021847,2]
[349834742,1737455465381,-3820.81913477,0.00021848,2]
[349834743,1737455465390,-5412.40788979,0.00021849,2]
[349834744,1737455465400,-5412.40788979,0.00021849,2]
[349834745,1737455465410,-44198.24303111,0.00021849,2]
[349834746,1737455465422,-36332.94395692,0.00021849,2]
[349834747,1737455465435,-2578.87116533,0.0002185,2]
[349834748,1737455465444,-6997.34460471,0.0002185,2]
[349834749,1737455465454,-5552.30311479,0.0002185,2]
[349834750,1737455465463,-200.0,0.00021851,2]
[349834751,1737455465473,-11152.019923,0.00021851,2]
[349834752,1737455465483,-3892.0869594,0.00021852,2]
[349834753,1737455465492,-16755.1511933,0.00021853,2]
[349834754,1737455465501,-3320.32470316,0.00021854,2]
[349834755,1737455465511,-1208.63,0.00021854,2]
[349834756,1737455465520,-720.29,0.00021854,2]
[349834757,1737455465528,-1135.55,0.00021854,2]
[349834758,1737455465537,-500.0,0.00021854,2]
[349834759,1737455465546,-5596.85,0.00021854,2]
[349834760,1737455465555,-500.0,0.00021854,2]
[349834761,1737455465564,-262.3,0.00021854,2]
[349834762,1737455465573,-516.225877,0.00021854,2]
[349834763,1737455465582,-786.72,0.00021854,2]
[349834764,1737455465591,-771.63,0.00021854,2]
[349834765,1737455465601,-543.76,0.00021854,2]
[349834766,1737455465610,-1177.6,0.00021854,2]
[349834767,1737455465620,-798.31,0.00021854,2]
[349834768,1737455465630,-1292.4,0.00021854,2]
[349834769,1737455465639,-358.333386,0.00021854,2]
[349834770,1737455465649,-941.38,0.00021854,2]
[349834771,1737455465658,-500.0,0.00021854,2]
[349834772,1737455465671,-500.0,0.00021854,2]
[349834773,1737455465681,-160.021937,0.00021854,2]
[349834774,1737455465690,-2147.55,0.00021854,2]
[349834775,1737455465700,-1700.18,0.00021854,2]
[349834776,1737455465709,-801.99,0.00021854,2]
[349834777,1737455465719,-987.08,0.00021854,2]
[349834778,1737455465728,-1814.27,0.00021854,2]
[349834779,1737455465738,-2064.99,0.00021854,2]
[349834780,1737455465747,-500.0,0.00021854,2]
[349834781,1737455465757,-551.16,0.00021854,2]
[349834782,1737455465767,-905.56,0.00021854,2]
[349834783,1737455465777,-2404.18,0.00021854,2]
[349834784,1737455465787,-841.45,0.00021854,2]
[349834785,1737455465796,-844.09,0.00021854,2]
[349834786,1737455465807,-711.51,0.00021854,2]
[349834787,1737455465817,-934.55,0.00021854,2]
[349834788,1737455465827,-47188.13612214,0.00021854,2]
[349834789,1737455465837,-500.0,0.00021855,2]
[349834790,1737455465847,-500.0,0.00021855,2]
[349834791,1737455465857,-500.0,0.00021855,2]
[349834792,1737455465866,-500.0,0.00021855,2]
[349834793,1737455465876,-500.0,0.00021855,2]
[349834794,1737455465886,-1407.85,0.00021855,2]
[349834795,1737455465896,-500.0,0.00021855,2]
[349834796,1737455465906,-622.64,0.00021855,2]
[349834797,1737455465918,-667.61,0.00021855,2]
[349834798,1737455465927,-500.0,0.00021855,2]
[349834799,1737455465936,-212.76368305,0.00021855,2]
[349834800,1737455465946,-766.15,0.00021855,2]
[349834801,1737455465957,-500.0,0.00021855,2]
[349834802,1737455465967,-1281.06,0.00021855,2]
[349834803,1737455465977,-11757.20080591,0.00021855,2]
[349834804,1737455465987,-6997.34460471,0.00021856,2]
[349834805,1737455465997,-393.30065698,0.00021856,2]
[349834806,1737455466007,-500.0,0.00021856,2]
[349834807,1737455466017,-500.0,0.00021856,2]
[349834808,1737455466027,-500.0,0.00021856,2]
[349834809,1737455466036,-500.0,0.00021856,2]
[349834810,1737455466046,-500.0,0.00021856,2]
[349834811,1737455466056,-500.0,0.00021856,2]
[349834812,1737455466066,-500.0,0.00021856,2]
[349834813,1737455466075,-500.0,0.00021856,2]
[349834814,1737455466085,-500.0,0.00021856,2]
[349834815,1737455466094,-500.0,0.00021856,2]
[349834816,1737455466104,-500.0,0.00021856,2]
[349834817,1737455466113,-500.0,0.00021856,2]
[349834818,1737455466123,-500.0,0.00021856,2]
[349834819,1737455466132,-500.0,0.00021856,2]
[349834820,1737455466141,-500.0,0.00021856,2]
[349834821,1737455466151,-500.0,0.00021856,2]
[349834822,1737455466160,-462.67562551,0.00021856,2]
[349834823,1737455466172,-500.0,0.00021856,2]
[349834824,1737455466182,-723.84,0.00021856,2]
[349834825,1737455466191,-1160.98,0.00021856,2]
[349834826,1737455466202,-724.95,0.00021856,2]
[349834827,1737455466212,-291.95592029,0.00021856,2]
[349834828,1737455466221,-1973.65,0.00021856,2]
[349834829,1737455466231,-763.12,0.00021856,2]
[349834830,1737455466240,-500.0,0.00021856,2]
[349834831,1737455466251,-1105.07,0.00021856,2]
[349834832,1737455466261,-500.0,0.00021856,2]
[349834833,1737455466271,-807.04,0.00021856,2]
[349834834,1737455466280,-500.0,0.00021856,2]
[349834835,1737455466289,-997.87,0.00021856,2]
[349834836,1737455466299,-500.0,0.00021856,2]
[349834837,1737455466308,-500.0,0.00021856,2]
[349834838,1737455466318,-500.0,0.00021856,2]
[349834839,1737455466328,-634.09,0.00021856,2]
[349834840,1737455466337,-500.0,0.00021856,2]
[349834841,1737455466347,-500.0,0.00021856,2]
[349834842,1737455466357,-500.0,0.00021856,2]
[349834843,1737455466366,-348.83207896,0.00021856,2]
[349834844,1737455466376,-522.9,0.00021856,2]
[349834845,1737455466386,-500.0,0.00021856,2]
[349834846,1737455466395,-500.0,0.00021856,2]
[349834847,1737455466405,-500.0,0.00021856,2]
[349834848,1737455466417,-500.0,0.00021856,2]
[349834849,1737455466426,-500.0,0.00021856,2]
[349834850,1737455466436,-632.31,0.00021856,2]
[349834851,1737455466448,-537.56,0.00021856,2]
[349834852,1737455466458,-924.73,0.00021856,2]
[349834853,1737455466467,-638.62,0.00021856,2]
[349834854,1737455466478,-1669.61,0.00021856,2]
[349834855,1737455466487,-500.0,0.00021856,2]
[349834856,1737455466496,-2780.73,0.00021856,2]
[349834857,1737455466506,-56948.11773028,0.00021856,2]
[349834858,1737455466516,-1159.66791995,0.00021858,2]
[349834859,1737455466525,-6689.74396254,0.00021858,2]
[349834860,1737455466534,-2491.79134546,0.00021859,2]
[349834861,1737455466544,-744.06494063,0.0002186,2]
[349834862,1737455466554,-3660.51208475,0.00021861,2]
[349834863,1737455466563,-98580.48007377,0.00021862,2]
[349834864,1737455466573,-1833.0,0.00021863,2]
[349834865,1737455466582,-1623.72236694,0.00021863,2]
[349834866,1737455466591,-1106.3971267,0.00021865,2]
[349834867,1737455466601,-3892.0869594,0.00021866,2]
[349834868,1737455466611,-8940.36013752,0.00021866,2]
[349834869,1737455466620,-4355.21673153,0.00021867,2]
[349834870,1737455466630,-20827.25077048,0.00021868,2]
[349834871,1737455466800,-44198.24303111,0.00021868,2]
[349834872,1737455466811,-350.0,0.00021868,2]
[349834873,1737455466820,-9363.60662886,0.00021868,2]
[349834874,1737455466830,-758.65,0.00021869,2]
[349834875,1737455466839,-110686.05842666,0.0002187,2]
[349834876,1737455466856,-345.31,0.0002187,2]
[349834877,1737455466871,-865.22564406,0.0002187,2]
[349834878,1737455466883,-4894.12274022,0.0002187,2]
[349834879,1737455466895,-20450.0,0.0002187,2]
[349834880,1737455466906,-2067.21978566,0.0002187,2]
[349834881,1737455466936,-500.0,0.00020547,2]
[349834882,1737455466946,-87880.03421448,0.0002187,2]
[349834883,1737455466956,-200.0,0.0002187,2]
[349834884,1737455466965,-17229.53620045,0.0002187,2]
[349834885,1737455467263,-557.60791489,0.0001849,2]
[349834886,1737455467275,-304.33735203,0.0001849,2]
[349834887,1737455467382,-1490.00240435,0.0001849,2]
[349834888,1737455467398,-22962.57158661,0.0001849,2]
[349834889,1737455467407,-451.09834126,0.00019664,2]
[349834890,1737455467431,-48.90165874,0.00019664,2]
[349834891,1737455467442,-500.0,0.00019664,2]
[349834892,1737455467451,-500.0,0.00019664,2]
[349834893,1737455467460,-274.09834126,0.00019938,2]
[349834894,1737455467475,-225.90165874,0.00019938,2]
[349834895,1737455467495,-500.0,0.00019938,2]
[349834896,1737455467516,-292.69834126,0.00020212,2]
[349834897,1737455467533,-207.30165874,0.00020212,2]
[349834898,1737455467543,-500.0,0.00020212,2]
[349834899,1737455467553,-6.50546133,0.00020486,2]
[349834900,1737455467576,-493.49453867,0.00020486,2]
[349834901,1737455467585,-500.0,0.00020486,2]
[349834902,1737455467595,-524.07045835,0.00020719,2]
[349834903,1737455467604,-500.0,0.00020719,2]
[349834904,1737455467614,-500.0,0.0002076,2]
[349834905,1737455467624,-500.0,0.0002076,2]
[349834906,1737455467633,-500.0,0.00020821,2]
[349834907,1737455467642,-1350.552,0.00020961,2]
[349834908,1737455467652,-500.0,0.00020993,2]
[349834909,1737455467661,-908.64,0.00021032,2]
[349834910,1737455467672,-500.0,0.00021034,2]
[349834911,1737455467682,-500.0,0.00021034,2]
[349834912,1737455467691,-500.0,0.00021095,2]
[349834913,1737455467700,-151.0,0.00021108,2]
[349834914,1737455467710,-908.64,0.00021306,2]
[349834915,1737455467719,-500.0,0.00021308,2]
[349834916,1737455467729,-200.044705,0.000215,2]
[349834917,1737455467739,-908.64,0.0002158,2]
[349834918,1737455467749,-500.0,0.00021582,2]
[349834919,1737455467758,-908.64,0.00021854,2]
[349834920,1737455467767,-18432.67585806,0.0002187,2]
[349834921,1737455467780,-503.22376216,0.0002187,2]
[349834922,1737455467791,-53716.68486905,0.0002187,2]
[349834923,1737455467802,-37752.0,0.0002187,2]
[349834924,1737455467815,-623.019999,0.0002187,2]
[349834925,1737455467826,-2063.0,0.0002187,2]
[349834926,1737455468269,-358.67365013,0.00019178,2]
[349834927,1737455468281,-141.32634987,0.00019178,2]
[349834928,1737455468291,-480.82864313,0.00019178,2]
[349834929,1737455468302,-222.84135687,0.00019178,2]
[349834930,1737455468313,-500.0,0.00019452,2]
[349834931,1737455468324,-703.67,0.00019452,2]
[349834932,1737455468333,-503.49681778,0.00019664,2]
[349834933,1737455468343,-500.0,0.00019726,2]
[349834934,1737455468353,-703.67,0.00019726,2]
[349834935,1737455468362,-500.0,0.0002,2]
[349834936,1737455468372,-703.67,0.0002,2]
[349834937,1737455468382,-500.0,0.00020273,2]
[349834938,1737455468391,-703.67,0.00020273,2]
[349834939,1737455468400,-500.0,0.00020547,2]
[349834940,1737455468410,-703.67,0.00020547,2]
[349834941,1737455468421,-500.0,0.00020719,2]
[349834942,1737455468432,-561.57,0.00020821,2]
[349834943,1737455468443,-703.67,0.00020821,2]
[349834944,1737455468453,-500.0,0.00020993,2]
[349834945,1737455468463,-703.67,0.00021095,2]
[349834946,1737455468472,-500.0,0.00021267,2]
[349834947,1737455468483,-500.0,0.00021267,2]
[349834948,1737455468492,-500.0,0.00021308,2]
[349834949,1737455468502,-703.67,0.00021369,2]
[349834950,1737455468512,-500.0,0.00021541,2]
[349834951,1737455468522,-500.0,0.00021541,2]
[349834952,1737455468532,-500.0,0.00021582,2]
[349834953,1737455468542,-500.0,0.00021815,2]
[349834954,1737455468552,-500.0,0.00021815,2]
[349834955,1737455468561,-500.0,0.00021856,2]
[349834956,1737455468570,-500.0,0.00021856,2]
[349834957,1737455468579,-5638.13182537,0.0002187,2]
[349834958,1737455468591,-4150.21095876,0.0002187,2]
[349834959,1737455468602,-151.0,0.0002187,2]
[349834960,1737455468612,-151.0,0.0002187,2]
[349834961,1737455468622,-1179.906541,0.0002187,2]
[349834962,1737455468632,-241.338884,0.0002187,2]
[349834963,1737455468641,-1179.906541,0.0002187,2]
[349834964,1737455468651,-241.338884,0.0002187,2]
[349834965,1737455468661,-151.0,0.0002187,2]
[349834966,1737455468674,-151.0,0.0002187,2]
[349834967,1737455468683,-200.0,0.00021871,2]
[349834968,1737455468693,-744.06494063,0.00021872,2]